bitfinex-derivatives/quotes_BTCF0:USTF0_20241006
["timestamp","ask_amount","ask_price","bid_price","bid_amount"]
[1728203627857,0.427869,62071.0,62070.0,0.2559826]
[1728203628062,0.427869,62071.0,62070.0,0.15947863]
[1728203629761,0.427869,62071.0,62070.0,0.25598276]
[1728203630468,0.427869,62071.0,62070.0,0.15947863]
[1728203630872,0.427869,62071.0,62070.0,0.25598382]
[1728203631470,0.427869,62071.0,62070.0,0.15954816]
[1728203631675,0.427869,62071.0,62070.0,0.25605306]
[1728203632061,0.427869,62071.0,62070.0,0.15954816]
[1728203635264,0.067069,62071.0,62070.0,0.15954816]
[1728203635464,0.427869,62071.0,62070.0,0.15954816]
[1728203640272,0.067069,62071.0,62070.0,0.15954816]
[1728203640473,0.427869,62071.0,62070.0,0.15954816]
[1728203640777,0.537869,62071.0,62070.0,0.1594991]
[1728203642976,0.537869,62071.0,62070.0,0.25601051]
[1728203643170,0.537869,62071.0,62070.0,0.25601357]
[1728203643970,0.537869,62071.0,62070.0,0.1594991]
[1728203644180,0.537869,62071.0,62070.0,0.23994012]
[1728203644381,0.537869,62071.0,62070.0,0.13104102]
[1728203644574,1.021189,62071.0,62070.0,0.02]
[1728203645377,1.621189,62071.0,62070.0,0.08432959]
[1728203645878,1.621189,62071.0,62066.0,0.0328]
[1728203646080,0.064445,62065.0,62064.0,0.08044102]
[1728203646284,0.064445,62065.0,62058.0,0.03]
[1728203646285,0.064447,62063.0,62062.0,0.08044102]
[1728203646588,0.064449,62061.0,62060.0,0.08044102]
[1728203646790,0.174849,62061.0,62060.0,0.08044102]
[1728203647483,0.06445,62060.0,62059.0,0.14214102]
[1728203647673,0.06485,62060.0,62059.0,0.25087123]
[1728203648475,0.06485,62060.0,62059.0,0.14214102]
[1728203648788,0.06485,62060.0,62059.0,0.15414102]
[1728203648789,0.06585,62060.0,62059.0,0.15414102]
[1728203648974,0.06685,62060.0,62059.0,0.26775116]
[1728203649174,0.06685,62060.0,62059.0,0.18740033]
[1728203649982,0.06685,62060.0,62059.0,0.26773778]
[1728203651085,0.42765,62060.0,62059.0,0.26773778]
[1728203651589,0.42765,62060.0,62059.0,0.15903745]
[1728203652589,0.42765,62060.0,62059.0,0.0787]
[1728203654090,0.42765,62060.0,62059.0,0.0777]
[1728203654298,0.42665,62060.0,62059.0,0.0657]
[1728203654501,0.42765,62060.0,62059.0,0.0757]
[1728203656306,0.42765,62060.0,62055.0,0.08033745]
[1728203656307,0.064454,62056.0,62055.0,0.08033745]
[1728203656601,0.064454,62056.0,62052.0,0.065]
[1728203656602,0.064457,62053.0,62052.0,0.065]
[1728203656801,0.174857,62053.0,62052.0,0.065]
[1728203658398,0.175857,62053.0,62052.0,0.069]
[1728203658608,0.176857,62053.0,62052.0,0.07]
[1728203660496,0.176857,62053.0,62052.0,0.11814572]
[1728203660907,0.537657,62053.0,62052.0,0.11814572]
[1728203661417,0.56683211,62053.0,62052.0,0.11814572]
[1728203661617,0.56946211,62053.0,62052.0,0.11814572]
[1728203661912,0.56946211,62053.0,62052.0,0.11714572]
[1728203662106,0.56946211,62053.0,62052.0,0.069]
[1728203662313,0.56946211,62053.0,62052.0,0.065]
[1728203664515,0.45946211,62053.0,62052.0,0.065]
[1728203664701,0.36543,62053.0,62052.0,0.065]
[1728203664906,0.440487,62053.0,62052.0,0.065]
[1728203666520,0.504944,62053.0,62052.0,0.065]
[1728203672018,0.539887,62053.0,62052.0,0.065]
[1728203677419,0.539887,62053.0,62052.0,0.14533745]
[1728203679417,0.539887,62053.0,62052.0,0.2543495]
[1728203681428,0.179087,62053.0,62052.0,0.17401205]
[1728203681626,0.539887,62053.0,62052.0,0.17401205]
[1728203690930,0.179087,62053.0,62052.0,0.17401205]
[1728203691132,0.539887,62053.0,62052.0,0.17401205]
[1728203691333,0.539887,62053.0,62052.0,0.27067162]
[1728203692349,0.179087,62053.0,62052.0,0.27067162]
[1728203692530,0.539887,62053.0,62052.0,0.27067162]
[1728203694529,0.179087,62053.0,62052.0,0.17415715]
[1728203694732,0.539887,62053.0,62052.0,0.17415715]
[1728203696135,0.537257,62053.0,62052.0,0.17415715]
[1728203697841,0.3628,62053.0,62052.0,0.27077383]
[1728203698155,0.0004,62056.0,62054.0,0.064456]
[1728203698335,0.0004,62056.0,62055.0,0.41411932]
[1728203698539,0.0004,62056.0,62055.0,0.89755932]
[1728203698746,0.0004,62056.0,62055.0,1.38755932]
[1728203699132,0.0004,62056.0,62055.0,1.32310432]
[1728203699448,0.1114,62056.0,62055.0,1.32410432]
[1728203699635,0.1114,62056.0,62055.0,0.24066432]
[1728203700150,0.1124,62056.0,62055.0,0.24066432]
[1728203700335,0.1124,62056.0,62055.0,1.32410432]
[1728203700531,0.1124,62056.0,62055.0,0.26788879]
[1728203700731,0.176854,62056.0,62055.0,0.26788879]
[1728203700932,0.176854,62056.0,62055.0,0.26888879]
[1728203704039,0.1124,62056.0,62055.0,0.26888879]
[1728203704641,0.1124,62056.0,62055.0,0.13962868]
[1728203707546,0.1124,62056.0,62055.0,0.23605076]
[1728203709754,0.176854,62056.0,62055.0,0.20726526]
[1728203710544,0.179484,62056.0,62055.0,0.20726526]
[1728203714452,0.179484,62056.0,62055.0,0.11084318]
[1728203718453,0.179484,62056.0,62055.0,0.11074101]
[1728203720555,0.179484,62056.0,62055.0,0.2399095]
[1728203720757,0.45153778,62056.0,62055.0,0.0024]
[1728203721056,0.30668546,62056.0,62055.0,0.0024]
[1728203721567,0.45153778,62056.0,62055.0,0.0024]
[1728203721976,0.30668546,62056.0,62055.0,0.0024]
[1728203723368,0.30674988,62056.0,62055.0,0.0024]
[1728203723554,0.4516022,62056.0,62055.0,0.0024]
[1728203724058,0.30674988,62056.0,62055.0,0.0024]
[1728203725558,0.4516022,62056.0,62055.0,0.0024]
[1728203726675,0.30674988,62056.0,62055.0,0.0024]
[1728203727956,0.4676969,62056.0,62055.0,0.0024]
[1728203728864,0.28399278,62056.0,62055.0,0.24024683]
[1728203733057,0.28399278,62056.0,62055.0,0.239372]
[1728203735255,0.28399278,62056.0,62055.0,0.23940301]
[1728203735666,0.28399278,62056.0,62055.0,0.20712227]
[1728203736471,0.28399278,62056.0,62055.0,0.1105237]
[1728203737066,0.12304576,62056.0,62055.0,0.1105237]
[1728203739671,0.48384576,62056.0,62055.0,0.1105237]
[1728203740667,0.12304576,62056.0,62055.0,0.1105237]
[1728203740875,0.48384576,62056.0,62055.0,0.1105237]
[1728203741571,0.48384576,62056.0,62055.0,0.19095558]
[1728203742377,0.48384576,62056.0,62055.0,0.1105237]
[1728203742689,0.48384576,62056.0,62055.0,0.19102712]
[1728203742973,0.96728576,62056.0,62055.0,0.08283145]
[1728203743166,0.96728576,62056.0,62055.0,0.0024]
[1728203743167,1.56728576,62056.0,62055.0,0.0024]
[1728203743975,1.75033045,62056.0,62055.0,0.00134687]
[1728203745880,1.75033045,62056.0,62055.0,0.0007561]
[1728203747373,1.75018861,62056.0,62055.0,0.0007561]
[1728203748577,1.75018861,62056.0,62044.0,0.0038]
[1728203748780,1.75018861,62056.0,62043.0,0.3608]
[1728203748781,0.064467,62044.0,62043.0,0.3608]
[1728203749078,0.19260067,62044.0,62043.0,0.3608]
[1728203749770,0.19260067,62044.0,62040.0,0.09390966]
[1728203749970,0.1104,62041.0,62040.0,0.09390966]
[1728203750172,0.18866815,62041.0,62040.0,0.09390966]
[1728203750784,0.1104,62041.0,62040.0,0.33138826]
[1728203752074,0.1124,62041.0,62040.0,0.33236174]
[1728203753781,0.1124,62041.0,62040.0,0.26789074]
[1728203753981,0.17687,62041.0,62040.0,0.26789074]
[1728203757085,0.17687,62041.0,62040.0,0.26788508]
[1728203757289,0.17687,62041.0,62040.0,0.13876465]
[1728203757985,0.2128276,62041.0,62040.0,0.03043866]
[1728203760782,0.21283331,62041.0,62040.0,0.03043866]
[1728203762881,0.21281909,62041.0,62040.0,0.03043866]
[1728203763081,0.21281909,62041.0,62040.0,0.001]
[1728203764984,0.21278073,62041.0,62040.0,0.001]
[1728203765984,0.17687,62041.0,62040.0,0.10949775]
[1728203768195,0.17587,62041.0,62040.0,0.10849775]
[1728203768395,0.17587,62041.0,62040.0,0.001]
[1728203768396,0.17687,62041.0,62040.0,0.001]
[1728203768589,0.17687,62041.0,62040.0,0.19009536]
[1728203768784,0.17687,62041.0,62040.0,0.001]
[1728203772091,0.53767,62041.0,62040.0,0.001]
[1728203772291,0.53767,62041.0,62040.0,0.06535673]
[1728203772991,0.064476,62035.0,62031.0,0.0631]
[1728203773196,0.11,62032.0,62031.0,0.0631]
[1728203773397,0.18748986,62032.0,62031.0,0.0631]
[1728203774392,0.18741838,62032.0,62031.0,0.0631]
[1728203774602,0.18841838,62032.0,62031.0,0.0631]
[1728203774798,0.07841838,62032.0,62031.0,0.0631]
[1728203774995,0.18841838,62032.0,62031.0,0.0631]
[1728203775198,0.18941838,62032.0,62031.0,0.0631]
[1728203777296,0.25389738,62032.0,62031.0,0.0631]
[1728203780997,0.176879,62032.0,62031.0,0.17183411]
[1728203781202,0.12041982,62032.0,62031.0,0.17183411]
[1728203783803,0.12041982,62032.0,62031.0,0.17144516]
[1728203785301,0.12041982,62032.0,62031.0,0.3005751]
[1728203785503,0.065479,62032.0,62031.0,0.17144516]
[1728203785704,0.175479,62032.0,62031.0,0.17144516]
[1728203786408,0.175479,62032.0,62031.0,0.30061498]
[1728203787301,0.175479,62032.0,62031.0,0.30062404]
[1728203787612,0.065479,62032.0,62031.0,0.30062404]
[1728203787814,0.175479,62032.0,62031.0,0.30062404]
[1728203788310,0.21151785,62032.0,62031.0,0.0631]
[1728203788507,0.175479,62032.0,62031.0,0.0631]
[1728203788805,0.2115722,62032.0,62031.0,0.0631]
[1728203791102,0.1015722,62032.0,62031.0,0.0631]
[1728203791306,0.2115722,62032.0,62031.0,0.0631]
[1728203792410,0.25330277,62032.0,62031.0,0.0631]
[1728203793410,0.25331038,62032.0,62031.0,0.0631]
[1728203796215,0.175479,62032.0,62031.0,0.30109115]
[1728203798313,0.175479,62032.0,62031.0,0.30127256]
[1728203801625,0.175479,62032.0,62031.0,0.23817256]
[1728203803116,0.175479,62032.0,62031.0,0.2381989]
[1728203804527,0.176479,62032.0,62031.0,0.2391989]
[1728203806419,0.179109,62032.0,62031.0,0.2391989]
[1728203808028,0.179109,62032.0,62031.0,0.23934026]
[1728203811124,0.24181829,62032.0,62027.0,0.02963544]
[1728203811436,0.1104,62028.0,62026.0,0.064485]
[1728203811727,0.07810986,62027.0,62026.0,0.064485]
[1728203813922,0.0014,62027.0,62026.0,0.064485]
[1728203814129,0.12858837,62027.0,62026.0,0.064485]
[1728203814728,0.12958837,62027.0,62026.0,0.064485]
[1728203815936,0.27471044,62027.0,62026.0,0.064485]
[1728203816140,0.12958837,62027.0,62026.0,0.064485]
[1728203817525,0.27471044,62027.0,62026.0,0.064485]
[1728203818242,0.0004,62028.0,62026.0,0.45325616]
[1728203818440,0.0004,62028.0,62027.0,0.50198346]
[1728203818629,0.0004,62028.0,62027.0,0.23871065]
[1728203819329,0.0014,62028.0,62027.0,0.23871065]
[1728203819528,0.0014,62028.0,62027.0,0.30319465]
[1728203820527,0.0024,62028.0,62027.0,0.30319465]
[1728203820937,0.0024,62028.0,62027.0,0.30419465]
[1728203820938,0.1124,62028.0,62027.0,0.30419465]
[1728203821139,0.1124,62028.0,62027.0,0.30429356]
[1728203824938,0.176883,62028.0,62027.0,0.30429356]
[1728203825743,0.176883,62028.0,62027.0,0.23980956]
[1728203826146,0.21325594,62028.0,62027.0,0.0024]
[1728203826942,0.25547459,62028.0,62027.0,0.0024]
[1728203830442,0.25546407,62028.0,62027.0,0.0024]
[1728203833255,0.25546407,62028.0,62027.0,0.23992919]
[1728203833256,0.176883,62028.0,62027.0,0.23992919]
[1728203835152,0.176883,62028.0,62027.0,0.23992156]
[1728203839553,0.176883,62028.0,62027.0,0.11076027]
[1728203839752,0.176883,62028.0,62027.0,0.20747751]
[1728203839953,0.176883,62028.0,62027.0,0.20752615]
[1728203841256,0.21318808,62028.0,62027.0,0.0024]
[1728203843249,0.25532085,62028.0,62027.0,0.0024]
[1728203844464,0.25432085,62028.0,62027.0,0.0014]
[1728203844760,0.25529901,62028.0,62027.0,0.0024]
[1728203845456,0.25429901,62028.0,62027.0,0.0014]
[1728203845654,0.25529901,62028.0,62027.0,0.0024]
[1728203847163,0.30478204,62028.0,62027.0,0.0024]
[1728203848158,0.176883,62028.0,62027.0,0.0024]
[1728203848358,0.176883,62028.0,62027.0,0.11075865]
[1728203849466,0.176883,62028.0,62027.0,0.11074811]
[1728203854163,0.537683,62028.0,62027.0,0.0024]
[1728203854470,0.537683,62028.0,62027.0,0.11076801]
[1728203854872,0.540313,62028.0,62027.0,0.11076801]
[1728203856469,0.540313,62028.0,62027.0,0.0024]
[1728203858368,0.430313,62028.0,62027.0,0.0024]
[1728203858568,0.539313,62028.0,62027.0,0.0014]
[1728203858871,0.540313,62028.0,62027.0,0.0024]
[1728203860871,0.430313,62028.0,62027.0,0.0024]
[1728203861173,0.540313,62028.0,62027.0,0.0024]
[1728203862871,0.179513,62028.0,62027.0,0.0024]
[1728203863178,0.540313,62028.0,62027.0,0.0024]
[1728203863365,0.540313,62028.0,62019.0,0.3893005]
[1728203863366,0.66154377,62028.0,62019.0,0.26158128]
[1728203863561,0.28768573,62020.0,62019.0,0.26158128]
[1728203863762,0.28768573,62020.0,62019.0,0.29022116]
[1728203863763,0.36609372,62020.0,62019.0,0.29022116]
[1728203863966,0.41557777,62020.0,62019.0,0.29022116]
[1728203864182,0.29611377,62020.0,62019.0,0.29022116]
[1728203864367,0.23829204,62020.0,62019.0,0.29022116]
[1728203864766,0.23929204,62020.0,62019.0,0.02863988]
[1728203864970,0.23929204,62020.0,62018.0,0.06691135]
[1728203865177,0.18611377,62019.0,62018.0,0.06691135]
[1728203865369,0.12829204,62019.0,62018.0,0.06691135]
[1728203866882,0.12929204,62019.0,62018.0,0.06691135]
[1728203867684,0.12929204,62019.0,62018.0,0.09610301]
[1728203868179,0.13029204,62019.0,62018.0,0.09610301]
[1728203870477,0.13029204,62019.0,62018.0,0.20610301]
[1728203870973,0.17738266,62024.0,62023.0,0.064488]
[1728203871185,0.05782173,62026.0,62023.0,0.1104]
[1728203871382,0.00303,62028.0,62027.0,0.064484]
[1728203871678,0.00303,62028.0,62027.0,0.56959553]
[1728203872074,0.00303,62028.0,62027.0,0.41837982]
[1728203872276,0.00303,62028.0,62027.0,0.30556745]
[1728203872874,0.00503,62028.0,62027.0,0.30556745]
[1728203873277,0.00503,62028.0,62027.0,0.30576706]
[1728203874677,0.11503,62028.0,62027.0,0.30576706]
[1728203876680,0.11503,62028.0,62027.0,0.33540051]
[1728203877887,0.11503,62028.0,62027.0,0.33530675]
[1728203878387,0.16451014,62028.0,62027.0,0.013857]
[1728203878585,0.16451014,62028.0,62027.0,0.064484]
[1728203879082,0.20452032,62028.0,62027.0,0.064484]
[1728203880978,0.23829185,62028.0,62027.0,0.064484]
[1728203881287,0.19831116,62028.0,62027.0,0.064484]
[1728203881489,0.23778627,62028.0,62027.0,0.064484]
[1728203881689,0.23778627,62028.0,62025.0,0.02880223]
[1728203881690,0.064485,62027.0,62025.0,0.02880223]
[1728203881987,0.28425771,62026.0,62025.0,0.02880223]
[1728203882888,0.28425771,62026.0,62025.0,0.02980223]
[1728203883090,0.28425771,62026.0,62025.0,0.03080223]
[1728203883590,0.12315627,62026.0,62025.0,0.03080223]
[1728203884673,0.12415627,62026.0,62025.0,0.03080223]
[1728203884878,0.12515627,62026.0,62025.0,0.03080223]
[1728203886179,0.1251186,62026.0,62025.0,0.03080223]
[1728203886400,0.0024,62026.0,62025.0,0.27284077]
[1728203901097,0.0024,62026.0,62025.0,0.64862588]
[1728203901303,0.0038,62035.0,62025.0,0.71311188]
[1728203901489,0.064481,62030.0,62024.0,0.12864512]
[1728203901798,0.12289897,62029.0,62028.0,0.11]
[1728203903504,0.12389897,62029.0,62028.0,0.111]
[1728203904604,0.12489897,62029.0,62028.0,0.112]
[1728203908203,0.18938097,62029.0,62028.0,0.112]
[1728203908400,0.066482,62029.0,62028.0,0.50865703]
[1728203910496,0.066482,62029.0,62028.0,0.62144922]
[1728203910695,0.066482,62029.0,62028.0,0.50865703]
[1728203913611,0.066482,62029.0,62028.0,0.62144169]
[1728203915500,0.002,62029.0,62028.0,0.62144169]
[1728203915698,0.002,62029.0,62028.0,0.176483]
[1728203915902,0.002,62029.0,62028.0,0.57711704]
[1728203917613,0.07338429,62029.0,62028.0,0.176483]
[1728203918002,0.12286156,62029.0,62028.0,0.176483]
[1728203918409,0.002,62029.0,62028.0,0.176483]
[1728203922515,0.0909507,62029.0,62028.0,0.176483]
[1728203922704,0.03390053,62029.0,62028.0,0.176483]
[1728203923407,0.12285123,62029.0,62028.0,0.176483]
[1728203924008,0.002,62029.0,62028.0,0.42208827]
[1728203926111,0.002,62029.0,62028.0,0.42208602]
[1728203928009,0.002,62029.0,62028.0,0.31208602]
[1728203928211,0.002,62029.0,62028.0,0.42208602]
[1728203931118,0.002,62029.0,62028.0,0.176483]
[1728203931922,0.04147344,62029.0,62028.0,0.176483]
[1728203932110,0.002,62029.0,62028.0,0.176483]
[1728203932611,0.073392,62029.0,62028.0,0.176483]
[1728203933011,0.002,62029.0,62028.0,0.176483]
[1728203933217,0.07339148,62029.0,62028.0,0.176483]
[1728203935220,0.03391804,62029.0,62028.0,0.176483]
[1728203936916,0.07339148,62029.0,62028.0,0.176483]
[1728203937120,0.07339234,62029.0,62028.0,0.176483]
[1728203937324,0.07339234,62029.0,62028.0,0.066483]
[1728203937509,0.07339234,62029.0,62028.0,0.176483]
[1728203938028,0.0339189,62029.0,62028.0,0.176483]
[1728203939120,0.0113,62033.0,62028.0,0.53474791]
[1728203939420,0.064478,62034.0,62032.0,0.1104]
[1728203939608,0.064478,62034.0,62033.0,0.2454886]
[1728203939814,0.064478,62034.0,62033.0,0.2458886]
[1728203940712,0.172973,62038.0,62033.0,0.2458886]
[1728203940909,0.172973,62038.0,62037.0,0.1104]
[1728203941118,0.172973,62038.0,62037.0,0.22239493]
[1728203941119,0.161673,62038.0,62037.0,0.22239493]
[1728203941417,0.161673,62038.0,62037.0,0.35585279]
[1728203942621,0.162673,62038.0,62037.0,0.35885279]
[1728203943119,0.163673,62038.0,62037.0,0.35885279]
[1728203943826,0.163673,62038.0,62037.0,0.36085279]
[1728203944616,0.163673,62038.0,62037.0,0.25085279]
[1728203945322,0.163673,62038.0,62037.0,0.2505684]
[1728203946023,0.163673,62038.0,62037.0,0.11724885]
[1728203946224,0.163673,62038.0,62037.0,0.14617792]
[1728203947522,0.163673,62038.0,62037.0,0.24277678]
[1728203947727,0.163673,62038.0,62037.0,0.14617792]
[1728203948919,0.163673,62038.0,62037.0,0.24276553]
[1728203949327,0.163673,62038.0,62037.0,0.14617792]
[1728203950246,0.163673,62038.0,62037.0,0.24276302]
[1728203951627,0.166303,62038.0,62037.0,0.24276302]
[1728203954329,0.2873031,62038.0,62037.0,0.03432907]
[1728203955024,0.28731151,62038.0,62037.0,0.03432907]
[1728203957039,0.44850195,62038.0,62037.0,0.03432907]
[1728203958038,0.28731151,62038.0,62037.0,0.03432907]
[1728203958234,0.44848897,62038.0,62037.0,0.03432907]
[1728203958733,0.28731151,62038.0,62037.0,0.03432907]
[1728203960025,0.44849323,62038.0,62037.0,0.03432907]
[1728203960225,0.44849323,62038.0,62037.0,0.14432907]
[1728203961232,0.44849323,62038.0,62037.0,0.38938735]
[1728203961233,0.101303,62038.0,62037.0,0.38938735]
[1728203961734,0.03683,62038.0,62037.0,0.38938735]
[1728203964537,0.03683,62038.0,62037.0,0.3892798]
[1728203969136,0.0321765,62038.0,62037.0,0.14432907]
[1728203969340,0.20950256,62038.0,62037.0,0.14432907]
[1728203969539,0.29844751,62038.0,62037.0,0.14432907]
[1728203970336,0.12112145,62038.0,62037.0,0.14432907]
[1728203971145,0.20950256,62038.0,62037.0,0.14432907]
[1728203972751,0.12112145,62038.0,62037.0,0.14432907]
[1728203973953,0.18559445,62038.0,62037.0,0.14432907]
[1728203976257,0.064473,62038.0,62037.0,0.38859006]
[1728203982761,0.064473,62038.0,62037.0,0.38863355]
[1728203983260,0.064473,62038.0,62037.0,0.33628473]
[1728203983965,0.064473,62038.0,62037.0,0.33628814]
[1728203984355,0.064473,62038.0,62037.0,0.2557872]
[1728203988059,0.06728867,62041.0,62037.0,0.3202612]
[1728203988364,0.06728867,62041.0,62040.0,0.25537451]
[1728203988365,0.00281867,62041.0,62040.0,0.25537451]
[1728203989260,0.00381867,62041.0,62040.0,0.25537451]
[1728203989658,0.00381867,62041.0,62040.0,0.25837451]
[1728203989868,0.00381867,62041.0,62040.0,0.177871]
[1728203990564,0.00481867,62041.0,62040.0,0.177871]
[1728203991365,0.0768594,62041.0,62040.0,0.10989367]
[1728203991670,0.12633214,62041.0,62040.0,0.10989367]
[1728203993670,0.12572713,62041.0,62040.0,0.10989367]
[1728203998462,0.00481867,62041.0,62040.0,0.35525704]
[1728204001977,0.00481867,62041.0,62040.0,0.35523591]
[1728204006272,0.07624053,62041.0,62040.0,0.10989367]
[1728204006470,0.12571326,62041.0,62040.0,0.16616306]
[1728204008885,0.12571326,62041.0,62040.0,0.05616306]
[1728204009073,0.12571326,62041.0,62040.0,0.16616306]
[1728204011386,0.12526225,62041.0,62040.0,0.16616306]
[1728204013273,0.12526225,62041.0,62040.0,0.41233626]
[1728204013274,0.00481867,62041.0,62040.0,0.41233626]
[1728204014184,0.00481867,62041.0,62040.0,0.27848052]
[1728204014568,0.00481867,62041.0,62040.0,0.41236507]
[1728204014769,0.00481867,62041.0,62040.0,0.41236977]
[1728204016382,0.00481867,62041.0,62040.0,0.41238903]
[1728204016774,0.0024,62041.0,62040.0,0.41238903]
[1728204017475,0.0024,62041.0,62040.0,0.25122597]
[1728204017684,0.06687,62041.0,62040.0,0.25122597]
[1728204018076,0.06687,62041.0,62040.0,0.11733133]
[1728204021387,0.06687,62041.0,62034.0,0.25041342]
[1728204021388,0.12276943,62041.0,62034.0,0.25041342]
[1728204021682,0.0004,62035.0,62034.0,0.25041342]
[1728204021987,0.12076943,62035.0,62034.0,0.25041342]
[1728204022480,0.12076943,62035.0,62034.0,0.31689042]
[1728204022880,0.12176943,62035.0,62034.0,0.31989042]
[1728204023283,0.12276943,62035.0,62034.0,0.31989042]
[1728204023485,0.12276943,62035.0,62034.0,0.349072]
[1728204025079,0.12276943,62035.0,62034.0,0.09865858]
[1728204028402,0.064474,62038.0,62034.0,0.34648528]
[1728204028688,0.064474,62038.0,62037.0,0.1104]
[1728204028894,0.064474,62038.0,62037.0,0.3582267]
[1728204029893,0.066474,62038.0,62037.0,0.3582267]
[1728204030494,0.066474,62038.0,62037.0,0.24993057]
[1728204030801,0.066474,62038.0,62037.0,0.35993057]
[1728204032396,0.066474,62038.0,62037.0,0.42440457]
[1728204032397,0.002,62038.0,62037.0,0.42440457]
[1728204032690,0.002,62038.0,62037.0,0.42640457]
[1728204035390,0.002,62038.0,62037.0,0.42634109]
[1728204040201,0.002,62038.0,62037.0,0.42636804]
[1728204041202,0.002,62038.0,62037.0,0.53903929]
[1728204041595,0.002,62038.0,62037.0,0.58379289]
[1728204042798,0.002,62038.0,62037.0,0.58359272]
[1728204043395,0.03313219,62038.0,62037.0,0.176874]
[1728204043594,0.07259965,62038.0,62037.0,0.176874]
[1728204047199,0.07259965,62038.0,62037.0,0.660434]
[1728204047906,0.07259965,62038.0,62037.0,0.176874]
[1728204048503,0.07522965,62038.0,62037.0,0.176874]
[1728204049610,0.07522824,62038.0,62037.0,0.176874]
[1728204051412,0.52432111,62044.0,62037.0,0.51868844]
[1728204051606,0.52432111,62044.0,62043.0,0.11]
[1728204051607,0.52240111,62044.0,62043.0,0.11]
[1728204051908,0.52240111,62044.0,62043.0,0.35945518]
[1728204052707,0.52340111,62044.0,62043.0,0.35945518]
[1728204053508,0.52340111,62044.0,62043.0,0.42392318]
[1728204053904,0.52240111,62044.0,62043.0,0.42392318]
[1728204054208,0.52340111,62044.0,62043.0,0.42392318]
[1728204054410,0.52740111,62044.0,62043.0,0.42392318]
[1728204054912,0.3662,62044.0,62043.0,0.42392318]
[1728204056813,0.0054,62044.0,62043.0,0.42392318]
[1728204057115,0.0054,62044.0,62043.0,0.53646183]
[1728204057514,0.0054,62044.0,62043.0,0.56557542]
[1728204058109,0.0054,62044.0,62043.0,0.72242568]
[1728204058609,0.0311295,62047.0,62043.0,0.20398159]
[1728204058813,0.0311295,62046.0,62043.0,0.09398159]
[1728204059111,0.03112994,62045.0,62043.0,0.09398159]
[1728204059316,0.03112994,62044.0,62043.0,0.09398159]
[1728204060623,0.03112994,62044.0,62043.0,0.09498159]
[1728204060811,0.03212994,62044.0,62043.0,0.09498159]
[1728204061004,0.03212994,62044.0,62043.0,0.20498159]
[1728204061420,0.03512994,62044.0,62043.0,0.20398159]
[1728204063117,0.004,62044.0,62043.0,0.20398159]
[1728204064911,0.004,62044.0,62043.0,0.09398159]
[1728204065213,0.004,62044.0,62043.0,0.20398159]
[1728204066626,0.033,62050.0,62045.0,0.064465]
[1728204066826,0.033,62050.0,62049.0,0.1104]
[1728204067021,0.033,62050.0,62049.0,0.35754458]
[1728204067724,0.04,62050.0,62049.0,0.35754458]
[1728204068022,0.049,62050.0,62049.0,0.35754458]
[1728204069322,0.042,62050.0,62049.0,0.35754458]
[1728204069621,0.04,62050.0,62049.0,0.35754458]
[1728204069825,0.049,62050.0,62049.0,0.35854458]
[1728204072121,0.049,62050.0,62049.0,0.35847418]
[1728204073625,0.049,62050.0,62049.0,0.22411829]
[1728204075430,0.049,62050.0,62049.0,0.35847636]
[1728204077737,0.11346,62050.0,62049.0,0.22411829]
[1728204078829,0.11346,62050.0,62049.0,0.35850168]
[1728204081529,0.23351323,62050.0,62047.0,0.04685071]
[1728204081727,0.0004,62048.0,62047.0,0.04685071]
[1728204081927,0.12045323,62048.0,62047.0,0.04685071]
[1728204082726,0.12045323,62048.0,62047.0,0.04785071]
[1728204083128,0.12545323,62048.0,62047.0,0.15785071]
[1728204083529,0.13245323,62048.0,62047.0,0.15785071]
[1728204088635,0.05341493,62050.0,62047.0,0.406031]
[1728204088834,0.05341493,62050.0,62049.0,0.0004]
[1728204089029,0.05341493,62050.0,62049.0,0.35858029]
[1728204089747,0.06241493,62050.0,62049.0,0.35858029]
[1728204090038,0.06941493,62050.0,62049.0,0.35858029]
[1728204090636,0.06941493,62050.0,62049.0,0.35958029]
[1728204096655,0.24727329,62050.0,62047.0,0.04685071]
[1728204096943,0.0004,62048.0,62047.0,0.04685071]
[1728204097149,0.12045855,62048.0,62047.0,0.04685071]
[1728204098434,0.12045855,62048.0,62047.0,0.04785071]
[1728204099140,0.12545855,62048.0,62047.0,0.04785071]
[1728204099342,0.13245855,62048.0,62047.0,0.04785071]
[1728204099542,0.13245855,62048.0,62047.0,0.15785071]
[1728204100850,0.13245806,62048.0,62047.0,0.15785071]
[1728204102950,0.13245596,62048.0,62047.0,0.15785071]
[1728204103650,0.00263,62050.0,62047.0,0.40806449]
[1728204103866,0.06709,62050.0,62049.0,0.0004]
[1728204104152,0.06709,62050.0,62049.0,0.25061378]
[1728204104943,0.07609,62050.0,62049.0,0.25061378]
[1728204105348,0.08209,62050.0,62049.0,0.25161378]
[1728204105861,0.07309,62050.0,62049.0,0.25161378]
[1728204106044,0.08209,62050.0,62049.0,0.25261378]
[1728204109347,0.01763,62050.0,62049.0,0.25261378]
[1728204110451,0.01763,62050.0,62049.0,0.25190988]
[1728204111649,0.01763,62050.0,62047.0,0.03023786]
[1728204111650,0.13768376,62050.0,62047.0,0.03023786]
[1728204111859,0.0004,62048.0,62045.0,0.0404]
[1728204112051,0.0004,62046.0,62045.0,0.097365]
[1728204112242,0.12045376,62046.0,62045.0,0.097365]
[1728204112646,0.12045376,62046.0,62037.0,0.008]
[1728204112647,0.83045376,62046.0,62037.0,0.008]
[1728204112842,0.425673,62038.0,62037.0,0.0004]
[1728204113059,0.71352426,62038.0,62037.0,0.0004]
[1728204113257,1.79708426,62038.0,62037.0,0.0004]
[1728204114854,1.79708426,62038.0,62037.0,0.00026534]
[1728204115056,1.79711629,62038.0,62037.0,0.00026534]
[1728204115246,1.79711629,62038.0,62037.0,0.01126534]
[1728204115247,1.79811629,62038.0,62037.0,0.01126534]
[1728204116150,1.79911629,62038.0,62037.0,0.02326534]
[1728204117649,1.19911629,62038.0,62037.0,0.02326534]
[1728204117850,0.71555629,62038.0,62037.0,0.02326534]
[1728204118747,0.4732,62038.0,62037.0,0.13837435]
[1728204118946,0.537673,62038.0,62037.0,0.13837435]
[1728204119361,0.176873,62038.0,62037.0,0.13837435]
[1728204119549,0.537673,62038.0,62037.0,0.13837435]
[1728204120147,0.427673,62038.0,62037.0,0.13837435]